fUST/lending_fUST_20241220
["ID","MTS","AMOUNT","RATE_DAILY","PERIOD"]
[346016799,1734625848435,-554.29,0.00024657,6]
[346016801,1734625848445,-194.51079241,0.00024657,6]
[346016803,1734625848455,-899.82,0.00024657,6]
[346016805,1734625848465,-2012.12,0.00024657,6]
[346016807,1734625848474,-500.0,0.00024657,6]
[346016809,1734625848484,-1920.83,0.00024657,6]
[346016811,1734625848494,-500.0,0.00024657,6]
[346016813,1734625848504,-1342.95,0.00024657,6]
[346016815,1734625848514,-500.0,0.00024657,6]
[346016817,1734625848524,-500.0,0.00024657,6]
[346016819,1734625848534,-500.0,0.00024657,6]
[346016821,1734625848544,-502.92164757,0.00024657,6]
[346016823,1734625848555,-1095.74,0.00024657,6]
[346016825,1734625848565,-503.42781703,0.00024657,6]
[346016827,1734625848577,-206.67787919,0.00024657,6]
[346016830,1734625848588,-553.56,0.00024657,6]
[346016832,1734625848598,-1031.45,0.00024657,6]
[346016834,1734625848608,-500.0,0.00024657,6]
[346016836,1734625848619,-500.0,0.00024657,6]
[346016838,1734625848628,-500.0,0.00024657,6]
[346016840,1734625848638,-500.0,0.00024657,6]
[346016842,1734625848647,-570.9,0.00024657,6]
[346016844,1734625848657,-500.0,0.00024657,6]
[346016846,1734625848667,-611.23,0.00024657,6]
[346016848,1734625848678,-1086.68,0.00024657,6]
[346016850,1734625848688,-593.66055043,0.00024657,6]
[346016852,1734625848698,-506.44451361,0.00024657,6]
[346016854,1734625848708,-150.0,0.00024657,6]
[346016856,1734625848718,-500.0,0.00024657,6]
[346016858,1734625848729,-500.0,0.00024657,6]
[346016860,1734625848739,-597.97,0.00024657,6]
[346016862,1734625848749,-500.0,0.00024657,6]
[346016864,1734625848759,-500.0,0.00024657,6]
[346016866,1734625848770,-500.0,0.00024657,6]
[346016868,1734625848780,-1413.69,0.00024657,6]
[346016870,1734625848791,-500.0,0.00024657,6]
[346016872,1734625848801,-1272.3,0.00024657,6]
[346016875,1734625848811,-500.0,0.00024657,6]
[346016877,1734625848821,-500.0,0.00024657,6]
[346016879,1734625848831,-500.0,0.00024657,6]
[346016881,1734625848841,-500.0,0.00024657,6]
[346016883,1734625848851,-500.0,0.00024657,6]
[346016885,1734625848861,-509.93,0.00024657,6]
[346016887,1734625848870,-280.80313341,0.00024657,6]
[346016889,1734625848880,-500.0,0.00024657,6]
[346016891,1734625848890,-500.0,0.00024657,6]
[346016893,1734625848901,-626.64,0.00024657,6]
[346016895,1734625848911,-502.9177976,0.00024657,6]
[346016897,1734625848921,-1469.22,0.00024657,6]
[346016899,1734625848932,-543.72,0.00024657,6]
[346016901,1734625848942,-500.0,0.00024657,6]
[346016903,1734625848952,-500.0,0.00024657,6]
[346016905,1734625848962,-500.0,0.00024657,6]
[346016907,1734625848971,-927.44,0.00024657,6]
[346016909,1734625848982,-500.0,0.00024657,6]
[346016911,1734625848993,-500.0,0.00024657,6]
[346016914,1734625849004,-500.0,0.00024657,6]
[346016915,1734625849014,-500.0,0.00024657,6]
[346016917,1734625849026,-593.59,0.00024657,6]
[346016920,1734625849036,-500.0,0.00024657,6]
[346016922,1734625849047,-1242.62,0.00024657,6]
[346016924,1734625849058,-500.0,0.00024657,6]
[346016926,1734625849069,-539.98,0.00024657,6]
[346016928,1734625849080,-500.0,0.00024657,6]
[346016930,1734625849091,-500.0,0.00024657,6]
[346016932,1734625849102,-500.0,0.00024657,6]
[346016934,1734625849112,-500.0,0.00024657,6]
[346016936,1734625849123,-782.7,0.00024657,6]
[346016938,1734625849133,-500.0,0.00024657,6]
[346016940,1734625849144,-557.25,0.00024657,6]
[346016942,1734625849155,-500.0,0.00024657,6]
[346016945,1734625849165,-500.0,0.00024657,6]
[346016947,1734625849176,-500.0,0.00024657,6]
[346016949,1734625849186,-2530.03,0.00024657,6]
[346016951,1734625849196,-2626.81,0.00024657,6]
[346016953,1734625849207,-448.72807773,0.00024657,6]
[346016955,1734625849217,-500.0,0.00024657,6]
[346016957,1734625849229,-2128.11,0.00024657,6]
[346016959,1734625849239,-2536.52,0.00024657,2]
[346016961,1734625849250,-500.0,0.00024657,6]
[346016963,1734625849260,-500.0,0.00024657,6]
[346016965,1734625849274,-1628.12,0.00024657,6]
[346016967,1734625849286,-500.0,0.00024657,6]
[346016969,1734625849297,-500.0,0.00024657,6]
[346016971,1734625849307,-660.8,0.00024657,6]
[346016973,1734625849317,-500.0,0.00024657,6]
[346016975,1734625849328,-965.94,0.00024657,6]
[346016977,1734625849338,-500.0,0.00024657,6]
[346016980,1734625849348,-500.0,0.00024657,6]
[346016982,1734625849359,-500.0,0.00024657,6]
[346016984,1734625849370,-500.0,0.00024657,6]
[346016986,1734625849380,-500.0,0.00024657,6]
[346016988,1734625849391,-500.0,0.00024657,6]
[346016990,1734625849402,-4232.01,0.00024657,6]
[346016992,1734625849412,-3376.62,0.00024657,6]
[346016994,1734625849422,-500.0,0.00024657,6]
[346016996,1734625849433,-500.0,0.00024657,6]
[346016998,1734625849443,-500.0,0.00024657,6]
[346017000,1734625849453,-500.0,0.00024657,6]
[346017002,1734625849464,-500.0,0.00024657,6]
[346017004,1734625849474,-2045.88,0.00024657,6]
[346017006,1734625849484,-500.0,0.00024657,6]
[346017009,1734625849494,-500.0,0.00024657,6]
[346017011,1734625849505,-287.31591625,0.00024657,6]
[346017013,1734625849515,-500.0,0.00024657,6]
[346017015,1734625849528,-509.35221295,0.00024657,6]
[346017017,1734625849538,-500.0,0.00024657,6]
[346017019,1734625849553,-755.81,0.00024657,6]
[346017021,1734625849566,-500.0,0.00024657,6]
[346017023,1734625849578,-3662.95,0.00024657,6]
[346017025,1734625849591,-500.0,0.00024657,6]
[346017027,1734625849601,-500.0,0.00024657,6]
[346017048,1734625849793,-500.0,0.00024657,6]
[346017050,1734625849803,-500.0,0.00024657,6]
[346017052,1734625849813,-500.0,0.00024657,6]
[346017054,1734625849825,-500.0,0.00024657,6]
[346017056,1734625849835,-1365.79,0.00024657,6]
[346017058,1734625849845,-500.0,0.00024657,6]
[346017060,1734625849855,-500.0,0.00024657,6]
[346017062,1734625849864,-500.0,0.00024657,6]
[346017064,1734625849874,-1000.0,0.00024657,2]
[346017066,1734625849884,-500.0,0.00024657,6]
[346017069,1734625849895,-1684.9,0.00024657,6]
[346017070,1734625849905,-69.26252546,0.00024657,6]
[346017950,1734626076125,10000.0,0.00025,120]
[346017951,1734626080939,10000.0,0.00025,120]
[346017952,1734626083087,10000.0,0.00025,120]
[346017953,1734626090809,10000.0,0.00025,120]
[346017954,1734626093893,10000.0,0.00025,120]
[346017955,1734626096404,10000.0,0.00025,120]
[346017956,1734626133750,170.682519,0.00013973,2]
[346017959,1734626925007,9078.0,0.000172,2]
[346018074,1734627032235,-185.28381,0.00021458,2]
[346018078,1734627032645,-203.0,0.00022,2]
[346018081,1734627032663,-166.0,0.00022,2]
[346018083,1734627032673,-300.0,0.00022121,2]
[346018085,1734627032682,-408.6243009,0.00022122,2]
[346018372,1734627038171,-7415.68932615,0.00022122,2]
[346018374,1734627038183,-8244.91047912,0.00022122,2]
[346018379,1734627038229,-3221.84836029,0.00022122,2]
[346018473,1734627040182,-5608.92753354,0.00022122,2]
[346018474,1734627040192,-205.0503161,0.00022354,2]
[346018475,1734627040204,-174.506555,0.00022403,2]
[346018476,1734627040213,-254.87433,0.00022587,2]
[346018477,1734627040223,-160.652313,0.00022587,2]
[346018478,1734627040232,-160.652313,0.00022597,2]
[346018479,1734627040241,-160.652313,0.00022606,2]
[346018480,1734627040250,-160.652313,0.00022616,2]
[346018481,1734627040259,-160.652313,0.00022625,2]
[346018482,1734627040269,-160.652313,0.00022635,2]
[346018483,1734627040278,-160.652313,0.00022644,2]
[346018484,1734627040287,-160.652313,0.00022653,2]
[346018485,1734627040296,-160.652313,0.00022663,2]
[346018486,1734627040306,-160.652313,0.00022672,2]
[346018487,1734627040315,-160.652313,0.00022682,2]
[346018488,1734627040324,-160.652313,0.00022691,2]
[346018489,1734627040333,-160.652313,0.00022701,2]
[346018490,1734627040342,-773.1092606,0.00022749,2]
[346018491,1734627040352,-329.92685442,0.000229,2]
[346018492,1734627040361,-3259.20796042,0.00022914,2]
[346018493,1734627040372,-204.0,0.00023014,2]
[346018494,1734627040381,-166.0,0.00023014,2]
[346018495,1734627040390,-1198.42,0.000231,2]
[346018496,1734627040399,-446.0,0.000231,10]
[346018497,1734627040409,-3259.20796041,0.00023224,2]
[346018498,1734627040418,-150.0,0.00023374,2]
[346018499,1734627040428,-2147.0,0.00023374,2]
[346018500,1734627040437,-3259.20796041,0.00023534,2]
[346018501,1734627040447,-3259.20796041,0.00023844,2]
[346018502,1734627040457,-487.825,0.0002403,2]
[346018503,1734627040466,-500.0,0.00024035,2]
[346018504,1734627040476,-3259.20796041,0.00024153,2]
[346018505,1734627040485,-420.0,0.00024333,2]
[346018506,1734627040494,-3259.20796041,0.00024463,2]
[346018507,1734627040503,-500.0,0.00024535,2]
[346018508,1734627040512,-15358.01712127,0.00024557,3]
[346018509,1734627040682,-1047.7081356,0.00024557,3]
[346018510,1734627040695,-10100.0,0.00024557,3]
[346018511,1734627040709,-5831.04535837,0.00024557,3]
[346018512,1734627040719,-5406.81818061,0.000246,6]
[346018513,1734627040728,-446.0,0.000246,11]
[346018514,1734627040737,-386.93205221,0.00024656,2]
[346018515,1734627040746,-1325.19,0.00024656,2]
[346018516,1734627040755,-42815.64017,0.00024657,2]
[346018885,1734627046576,-1010.5362109,0.00022677,2]
[346018887,1734627046586,-11665.32178812,0.00024657,2]
[346018889,1734627046595,-3698.859788,0.00024657,2]
[346018891,1734627046605,-555.44,0.00024657,6]
[346018893,1734627046614,-500.0,0.00024657,6]
[346018895,1734627046623,-500.0,0.00024657,6]
[346018897,1734627046633,-500.0,0.00024657,6]
[346018900,1734627046642,-500.0,0.00024657,6]
[346018902,1734627046652,-543.14,0.00024657,6]
[346018903,1734627046661,-196.44746086,0.00024657,6]
[346018904,1734627046670,-500.0,0.00024657,6]
[346018905,1734627046680,-500.0,0.00024657,6]
[346018912,1734627046866,-500.0,0.00024657,6]
[346018914,1734627046875,-500.0,0.00024657,6]
[346018916,1734627046885,-500.0,0.00024657,6]
[346018918,1734627046894,-500.0,0.00024657,6]
[346018920,1734627046903,-500.0,0.00024657,6]
[346018922,1734627046913,-500.0,0.00024657,6]
[346018924,1734627046922,-500.0,0.00024657,6]
[346018926,1734627046931,-500.0,0.00024657,6]
[346018928,1734627046940,-500.0,0.00024657,6]
[346018930,1734627046952,-500.0,0.00024657,6]
[346018932,1734627046963,-500.0,0.00024657,6]
[346018934,1734627046975,-500.0,0.00024657,6]
[346018936,1734627046985,-500.0,0.00024657,6]
[346018938,1734627046994,-539.72,0.00024657,6]
[346018940,1734627047003,-500.0,0.00024657,6]
[346018942,1734627047014,-159.45371918,0.00024657,6]
[346018944,1734627047023,-500.0,0.00024657,6]
[346018946,1734627047032,-500.0,0.00024657,6]
[346018948,1734627047042,-500.0,0.00024657,6]
[346018950,1734627047051,-414.27254079,0.00024657,6]
[346019124,1734627420715,169.114923,0.00013973,2]
[346019137,1734627688611,151.0,0.00025,120]
[346019184,1734628232458,-166.0,0.00022,2]
[346019187,1734628232468,-250.0,0.00022058,2]
[346019188,1734628232478,-1075.9762627,0.00022183,2]
[346019190,1734628232488,-172.968859,0.00022403,2]
[346019192,1734628232497,-727.707326,0.000226,2]
[346019194,1734628232507,-287.617789,0.00022677,2]
[346019195,1734628232517,-300.0,0.00022817,2]
[346019197,1734628232527,-300.0,0.00022817,2]
[346019199,1734628232537,-6061.95152044,0.00022818,2]
[346019289,1734628238372,-4361.40553258,0.00022818,2]
[346019290,1734628238483,-1007.7,0.00022818,2]
[346019315,1734628240455,-418.81325231,0.00022818,2]
[346019316,1734628240469,-438.28066447,0.00022818,2]
[346019317,1734628240479,-1078.58,0.000231,2]
[346019318,1734628240488,-401.0,0.000231,10]
[346019319,1734628240498,-150.0,0.00023374,2]
[346019320,1734628240507,-1311.106,0.00023374,2]
[346019321,1734628240516,-20084.55021312,0.0002372,3]
[346019322,1734628240525,-467.728,0.0002403,2]
[346019323,1734628240534,-500.0,0.00024035,2]
[346019324,1734628240544,-500.0,0.00024535,2]
[346019325,1734628240553,-25418.8891732,0.00024557,2]
[346019389,1734628246428,-166.0,0.00022,2]
[346019390,1734628246438,-141.24250152,0.00023014,2]
[346019391,1734628246696,-24.75749848,0.00023014,2]
[346019392,1734628246705,-1975.21305662,0.00024557,2]
[346019393,1734628246715,-1849.429894,0.00024557,2]
[346019394,1734628246724,-666.0,0.00024557,2]
[346019395,1734628246733,-25710.0401409,0.00024557,7]
[346019396,1734628466951,168.853657,0.00013973,2]
[346019399,1734628735456,500.07,0.00014,2]
[346019403,1734629247145,-167.0,0.00022,2]
[346019404,1734629247168,-162.92685442,0.00022279,2]
[346019405,1734629314459,1742.68726161,0.00011,2]
[346019435,1734629355091,168.067937,0.00013973,2]
[346019454,1734629432768,-6319.03715114,0.00022,2]
[346019465,1734629438576,-2981.02557328,0.00022,2]
[346019466,1734629438588,-500.0,0.00022,2]
[346019467,1734629438603,-74.66936286,0.00022,2]
[346019468,1734629438612,-300.0,0.00022176,2]
[346019469,1734629438621,-248.480935,0.00022177,2]
[346019470,1734629438631,-11.57970058,0.00022279,2]
[346019471,1734629438641,-18177.19874029,0.00022798,2]
[346019472,1734629438662,-6722.80125971,0.00022798,2]
[346019473,1734629438673,-904.96303925,0.000229,2]
[346019474,1734629438689,-243.75727319,0.00023,2]
[346019475,1734629438699,-167.0,0.00023014,2]
[346019476,1734629438709,-970.72,0.000231,2]
[346019477,1734629438719,-904.96303923,0.00023212,2]
[346019479,1734629438730,-448.091,0.0002343,2]
[346019480,1734629438740,-904.96303923,0.00023523,2]
[346019481,1734629438750,-13676.20104939,0.0002372,3]
[346019509,1734629440708,-1856.9,0.0002343,2]
[346019511,1734629440718,-4399.89414241,0.0002372,3]
[346019513,1734629440728,-904.96303923,0.00023835,2]
[346019515,1734629440739,-1327.59,0.00023999,2]
[346019517,1734629440749,-13697.05111491,0.00024,2]
[346019519,1734629440757,-924.714947,0.00024,2]
[346019521,1734629440767,-97000.0,0.00024,2]
[346019522,1734629440776,-2244.0360614,0.00024035,2]
[346019524,1734629440786,-904.96303923,0.00024146,2]
[346019526,1734629440795,-2389.23,0.00024293,15]
[346019529,1734629440804,-420.0,0.00024394,2]
[346019530,1734629440814,-225.2336273,0.0002441,2]
[346019532,1734629440824,-45114.07434608,0.00024457,2]
[346019535,1734629440834,-151.0,0.00024457,7]
[346019537,1734629440846,-151.0,0.00024457,7]
[346019539,1734629440856,-151.0,0.00024457,7]
[346019541,1734629440865,-151.0,0.00024457,7]
[346019545,1734629440877,-904.96303923,0.00024458,2]
[346019549,1734629440887,-2244.0360614,0.00024535,2]
[346019553,1734629440896,-24660.10857372,0.00024557,7]
[346019556,1734629440908,-500.0,0.00024557,7]
[346019558,1734629440920,-3547.19999999,0.00024557,7]
[346019561,1734629440938,-1767.8,0.00024557,7]
[346019567,1734629440994,-755.12094371,0.00024557,7]
[346019570,1734629441007,-3763.14129636,0.00024557,7]
[346020120,1734630305794,167.502348,0.00013973,2]
[346020122,1734630502200,37877.4302734,0.00025,120]
[346020124,1734630546352,411.4,0.000172,2]
[346020191,1734630636948,-814.33938564,0.00022546,2]
[346020193,1734630636958,-1158.06061436,0.00022912,10]
[346020205,1734630637232,-644.257,0.00022912,10]
[346020206,1734630637244,-527.70534329,0.00022912,10]
[346020208,1734630637256,-328.7925,0.00022912,10]
[346020209,1734630637266,-695.99972335,0.00022912,10]
[346020211,1734630637278,-1490.0489676,0.00022912,10]
[346020382,1734630638877,-8960.3818514,0.00022912,10]
[346020384,1734630638887,-255.098,0.00022999,2]
[346020386,1734630638898,-300.0,0.00022999,2]
[346020388,1734630638908,-300.0,0.00022999,2]
[346020390,1734630638924,-7709.5201487,0.00023,5]
[346020395,1734630638965,-21813.39,0.00023,5]
[346020398,1734630638977,-350.0,0.00023,5]
[346020582,1734630640874,-37127.0898513,0.00023,5]
[346020584,1734630640885,-226.24075986,0.00023,2]
[346020586,1734630640895,-873.65,0.000231,2]
[346020588,1734630640904,-381.0,0.000231,10]
[346020590,1734630640918,-20139.6101685,0.00023152,2]
[346020592,1734630640928,-226.2407598,0.00023297,2]
[346020594,1734630640938,-226.2407598,0.00023594,2]
[346020596,1734630640947,-226.2407598,0.00023891,2]
[346020598,1734630640957,-1346.4216368,0.00024035,2]
[346020600,1734630640966,-226.2407598,0.00024188,2]
[346020602,1734630640976,-225.2336273,0.0002441,2]
[346020604,1734630640985,-226.2407598,0.00024485,2]
[346020606,1734630640995,-1346.4216368,0.00024535,2]
[346020607,1734630641005,-1272.27,0.00024555,2]
[346020609,1734630641015,-65182.53536802,0.00024557,7]
[346020611,1734630641026,-666.0,0.00024557,2]
[346020613,1734630641037,-9665.25,0.00024557,7]
[346020615,1734630641047,-32336.77061524,0.00024557,3]
[346020617,1734630641059,-151.0,0.00024557,7]
[346020619,1734630641069,-174.982989,0.00024557,7]
[346020621,1734630641082,-174.982989,0.00024557,7]
[346020623,1734630641099,-151.0,0.00024557,7]
[346020625,1734630641110,-151.0,0.00024557,7]
[346020628,1734630641121,-151.0,0.00024557,7]
[346020631,1734630641134,-462.3574735,0.000246,2]
[346020634,1734630641146,-8652.59279418,0.000246,2]
[346020637,1734630641156,-381.0,0.000246,11]
[346020640,1734630641171,-180020.45958213,0.000246,2]
[346020642,1734630641187,-151.0,0.000246,7]
[346020643,1734630641197,-717.884066,0.000246,7]
[346020646,1734630641208,-151.0,0.000246,7]
[346020649,1734630641218,-151.0,0.000246,7]
[346020652,1734630641228,-151.0,0.000246,7]
[346020655,1734630641238,-193.47985,0.000246,7]
[346020658,1734630641247,-193.47985,0.000246,7]
[346020661,1734630641257,-151.0,0.000246,7]
[346020664,1734630641268,-220.682908,0.000246,7]
[346020666,1734630641279,-220.682908,0.000246,7]
[346020668,1734630641289,-174.982989,0.000246,7]
[346020670,1734630641299,-174.982989,0.000246,7]
[346020672,1734630641309,-151.0,0.000246,7]
[346020673,1734630641320,-151.0,0.000246,7]
[346020675,1734630641329,-151.0,0.000246,7]
[346020677,1734630641339,-522.42643576,0.00024657,6]
[346020679,1734630641350,-495.31853385,0.00024657,6]
[346020681,1734630641359,-517.56947411,0.00024657,6]
[346020683,1734630641368,-500.0,0.00024657,6]
[346020684,1734630641378,-516.90586007,0.00024657,6]
[346020685,1734630641387,-500.0,0.00024657,6]
[346020686,1734630641396,-405.57537291,0.00024657,6]
[346020687,1734630641406,-500.0,0.00024657,6]
[346020688,1734630641420,-500.0,0.00024657,6]
[346020689,1734630641431,-500.0,0.00024657,6]
[346020690,1734630641440,-500.0,0.00024657,6]
[346020691,1734630641449,-500.0,0.00024657,6]
[346020692,1734630641458,-500.0,0.00024657,6]
[346020693,1734630641468,-500.0,0.00024657,6]
[346020694,1734630641477,-500.0,0.00024657,6]
[346020695,1734630641486,-500.0,0.00024657,6]
[346020696,1734630641495,-362.87425042,0.00024657,6]
[346020697,1734630641504,-500.0,0.00024657,6]
[346020698,1734630641513,-500.0,0.00024657,6]
[346020699,1734630641523,-500.71415736,0.00024657,6]
[346020700,1734630641543,-500.0,0.00024657,6]
[346020701,1734630641555,-500.0,0.00024657,6]
[346020702,1734630641565,-500.0,0.00024657,6]
[346020703,1734630641575,-503.5495751,0.00024657,6]
[346020704,1734630641585,-500.0,0.00024657,6]
[346020705,1734630641595,-500.0,0.00024657,6]
[346020706,1734630641605,-500.0,0.00024657,6]
[346020708,1734630641615,-500.0,0.00024657,6]
[346020710,1734630641625,-500.0,0.00024657,6]
[346020712,1734630641635,-501.10037608,0.00024657,6]
[346020714,1734630641645,-500.0,0.00024657,6]
[346020716,1734630641656,-500.0,0.00024657,6]
[346020718,1734630641669,-563.19,0.00024657,6]
[346020721,1734630641680,-500.0,0.00024657,6]
[346020723,1734630641690,-506.34909029,0.00024657,6]
[346020725,1734630641700,-245.56267393,0.00024657,6]
[346020727,1734630641711,-500.0,0.00024657,6]
[346020729,1734630641721,-500.0,0.00024657,6]
[346020731,1734630641731,-500.0,0.00024657,6]
[346020733,1734630641741,-500.0,0.00024657,6]
[346020735,1734630641751,-501.83513903,0.00024657,6]
[346020737,1734630641760,-578.35722965,0.00024657,6]
[346020739,1734630641770,-500.0,0.00024657,6]
[346020741,1734630641780,-500.0,0.00024657,6]
[346020743,1734630641790,-500.0,0.00024657,6]
[346020745,1734630641800,-273.42999801,0.00024657,2]
[346020747,1734630641810,-500.0,0.00024657,6]
[346020749,1734630641820,-586.42,0.00024657,6]
[346020751,1734630641831,-593.66055043,0.00024657,6]
[346020753,1734630641840,-500.0,0.00024657,6]
[346020755,1734630641850,-500.0,0.00024657,6]
[346020757,1734630641860,-500.0,0.00024657,6]
[346020759,1734630641871,-500.0,0.00024657,6]
[346020761,1734630641881,-500.0,0.00024657,6]
[346020764,1734630641891,-500.0,0.00024657,6]
[346020766,1734630641902,-500.0,0.00024657,6]
[346020768,1734630641912,-500.0,0.00024657,6]
[346020770,1734630641927,-500.0,0.00024657,6]
[346020772,1734630641937,-626.64,0.00024657,6]
[346020774,1734630641947,-206.67787919,0.00024657,6]
[346020776,1734630641957,-530.32486989,0.00024657,9]
[346020778,1734630641966,-500.0,0.00024657,6]
[346020780,1734630641976,-500.0,0.00024657,9]
[346020782,1734630641986,-500.0,0.00024657,6]
[346020784,1734630641996,-500.0,0.00024657,6]
[346020786,1734630642006,-506.44451361,0.00024657,6]
[346020788,1734630642015,-500.0,0.00024657,6]
[346020790,1734630642026,-500.0,0.00024657,6]
[346020792,1734630642035,-500.0,0.00024657,6]
[346020794,1734630642045,-500.0,0.00024657,6]
[346020796,1734630642055,-280.80313341,0.00024657,6]
[346020798,1734630642065,-500.0,0.00024657,6]
[346020800,1734630642075,-500.0,0.00024657,6]
[346020802,1734630642085,-500.0,0.00024657,6]
[346020804,1734630642094,-500.0,0.00024657,6]
[346020806,1734630642104,-500.0,0.00024657,6]
[346020808,1734630642116,-500.0,0.00024657,6]
[346020810,1734630642125,-500.0,0.00024657,6]
[346020812,1734630642135,-500.0,0.00024657,6]
[346020815,1734630642146,-500.0,0.00024657,6]
[346020817,1734630642158,-500.0,0.00024657,6]
[346020819,1734630642171,-500.0,0.00024657,6]
[346020821,1734630642180,-547.21,0.00024657,6]
[346020823,1734630642190,-448.72807773,0.00024657,6]
[346020825,1734630642200,-500.0,0.00024657,6]
[346020827,1734630642211,-500.0,0.00024657,6]
[346020829,1734630642222,-500.0,0.00024657,6]
[346020831,1734630642232,-500.0,0.00024657,6]
[346020833,1734630642242,-500.0,0.00024657,6]
[346020835,1734630642252,-500.0,0.00024657,6]
[346020837,1734630642261,-500.0,0.00024657,6]
[346020839,1734630642271,-717.884066,0.00024657,7]
[346020841,1734630642281,-717.884066,0.00024657,7]
[346020843,1734630642291,-717.884066,0.00024657,7]
[346020845,1734630642301,-717.884066,0.00024657,7]
[346020847,1734630642311,-717.884066,0.00024657,7]
[346020850,1734630642321,-717.884066,0.00024657,7]
[346020852,1734630642330,-717.884066,0.00024657,7]
[346020854,1734630642341,-717.884066,0.00024657,7]
[346020856,1734630642351,-717.884066,0.00024657,7]
[346020858,1734630642361,-717.884059,0.00024657,7]
[346020860,1734630642370,-500.0,0.00024657,6]
[346020862,1734630642383,-500.0,0.00024657,6]
[346020864,1734630642394,-263.71170207,0.00024657,6]
[346020866,1734630642403,-500.0,0.00024657,6]
[346020878,1734630642503,-500.0,0.00024657,6]
[346020880,1734630642514,-1219.56,0.00024657,6]
[346020882,1734630642524,-511.86127919,0.00024657,6]
[346020884,1734630642534,-500.0,0.00024657,6]
[346020886,1734630642544,-670.52,0.00024657,6]
[346020888,1734630642553,-1330.42,0.00024657,6]
[346020890,1734630642563,-500.0,0.00024657,6]
[346020892,1734630642572,-500.0,0.00024657,6]
[346020894,1734630642582,-500.0,0.00024657,6]
[346020896,1734630642592,-500.0,0.00024657,6]
[346020898,1734630642601,-500.0,0.00024657,6]
[346020900,1734630642611,-1000.0,0.00024657,2]
[346020902,1734630642620,-500.0,0.00024657,6]
[346020904,1734630642629,-500.0,0.00024657,6]
[346020906,1734630642639,-624.63558521,0.00024657,6]
[346020908,1734630642648,-500.0,0.00024657,6]
[346020910,1734630642657,-500.0,0.00024657,6]
[346020912,1734630642671,-500.0,0.00024657,6]
[346020914,1734630642680,-500.0,0.00024657,6]
[346020916,1734630642689,-1195.96,0.00024657,2]
[346020918,1734630642699,-2566.09,0.00024657,6]
[346020920,1734630642709,-702.71,0.00024657,6]
[346020922,1734630642718,-505.29,0.00024657,6]
[346020924,1734630642728,-749.23,0.00024657,6]
[346020926,1734630642737,-500.0,0.00024657,6]
[346020928,1734630642747,-500.0,0.00024657,6]
[346020930,1734630642756,-500.0,0.00024657,6]
[346020932,1734630642766,-500.0,0.00024657,6]
[346020934,1734630642776,-500.0,0.00024657,6]
[346020936,1734630642785,-500.0,0.00024657,6]
[346020939,1734630642795,-174.63,0.00024657,6]
[346020941,1734630642804,-500.0,0.00024657,6]
[346020943,1734630642813,-500.0,0.00024657,6]
[346020945,1734630642823,-500.0,0.00024657,6]
[346020947,1734630642832,-500.0,0.00024657,6]
[346020949,1734630642842,-382.30004631,0.00024657,6]
[346020951,1734630642851,-500.0,0.00024657,6]
[346020953,1734630642861,-500.0,0.00024657,6]
[346020954,1734630642870,-899.82,0.00024657,6]
[346020956,1734630642879,-500.0,0.00024657,6]